bitfinex/quotes_ETHUSD_20240816
["timestamp","ask_amount","ask_price","bid_price","bid_amount"]
[1723849773177,3.21334214,2596.4,2596.3,3.85154]
[1723849776998,3.1479,2595.9,2595.8,0.80772522]
[1723849777335,3.1479,2595.9,2595.7,0.1279038]
[1723849777336,2.4479,2595.8,2595.7,0.1279038]
[1723849777492,2.9979,2595.8,2595.7,0.1279038]
[1723849777700,3.06289441,2595.8,2595.7,0.1279038]
[1723849777936,4.52830255,2595.8,2595.7,0.1279038]
[1723849778137,3.72643686,2595.8,2595.7,0.1279038]
[1723849778297,4.52767067,2595.8,2595.7,0.1279038]
[1723849778609,3.72643686,2595.8,2595.7,0.1279038]
[1723849778809,4.52762078,2595.8,2595.7,0.1279038]
[1723849779008,3.72643686,2595.8,2595.7,0.1279038]
[1723849779326,4.52762086,2595.8,2595.7,0.1279038]
[1723849779698,4.52711286,2595.8,2595.7,0.1279038]
[1723849780130,4.92996692,2595.8,2595.7,0.1279038]
[1723849780431,3.72643686,2595.8,2595.7,0.1279038]
[1723849780610,4.52715925,2595.8,2595.7,0.1279038]
[1723849781227,3.72643686,2595.8,2595.7,0.1279038]
[1723849781629,4.52715925,2595.8,2595.7,0.1279038]
[1723849781929,3.72643686,2595.8,2595.7,0.1279038]
[1723849782312,3.06289441,2595.8,2595.7,0.1279038]
[1723849782515,0.61499441,2595.8,2595.7,0.1279038]
[1723849783935,0.61499441,2595.8,2595.7,3.9804238]
[1723849784635,0.06499441,2595.8,2595.7,7.8329438]
[1723849784838,0.06499441,2595.8,2595.7,17.13775818]
[1723849785024,0.7,2595.9,2595.8,7.70474]
[1723849785525,0.76457994,2595.9,2595.8,7.70474]
[1723849785903,0.06457994,2595.9,2595.8,11.55711]
[1723849786103,0.06457994,2595.9,2595.8,11.98458293]
[1723849786315,0.7,2596.2,2596.1,3.85193]
[1723849786538,0.7,2596.2,2596.1,7.70386]
[1723849786917,0.76291397,2596.2,2596.1,7.70386]
[1723849787505,0.76291397,2596.2,2596.1,3.85193]
[1723849789126,0.76291397,2596.2,2596.1,7.70386]
[1723849790047,0.76291397,2596.2,2596.1,3.85193]
[1723849792518,0.76291397,2596.2,2596.0,3.85207]
[1723849793047,0.76291397,2596.2,2596.0,7.70405]
[1723849793353,0.76291397,2596.2,2596.0,3.85198]
[1723849794215,0.76291397,2596.2,2596.0,7.70398]
[1723849794415,0.76291397,2596.2,2596.0,3.85198]
[1723849795051,0.76291397,2596.2,2596.0,7.70398]
[1723849795438,0.76291397,2596.2,2596.1,3.85193]
[1723849795653,1.31291397,2596.2,2596.0,3.85198]
[1723849795815,1.31291397,2596.2,2596.0,7.70398]
[1723849796220,1.31291397,2596.2,2596.1,3.85193]
[1723849796948,0.76291397,2596.2,2596.1,7.70386]
[1723849798559,0.76291397,2596.2,2596.1,3.85193]
[1723849800919,3.08021397,2596.2,2596.1,3.85193]
[1723849801133,0.76291397,2596.2,2596.1,3.85193]
[1723849801625,1.15100761,2596.2,2596.0,3.85207]
[1723849803354,0.7,2595.9,2595.8,3.85227]
[1723849803562,1.25,2595.9,2595.8,6.85227]
[1723849803761,1.31270603,2595.9,2595.8,6.85227]
[1723849803931,1.31270603,2595.9,2595.8,10.70464]
[1723849804130,0.76270603,2595.9,2595.8,10.70464]
[1723849807364,0.76270603,2595.9,2595.8,12.98154]
[1723849807574,0.7,2595.9,2595.8,12.98154]
[1723849807756,0.76271625,2595.9,2595.8,12.98154]
[1723849807963,0.7,2595.9,2595.8,10.70464]
[1723849808830,0.76271625,2595.9,2595.8,10.70464]
[1723849811872,3.25581625,2595.9,2595.8,10.70464]
[1723849812027,3.58139787,2595.9,2595.8,6.85227]
[1723849812229,3.58139787,2595.9,2595.8,10.70464]
[1723849812443,0.76271625,2595.9,2595.8,10.70464]
[1723849820697,0.76271625,2595.9,2595.8,6.85227]
[1723849820895,0.76271625,2595.9,2595.8,10.70464]
[1723849821590,0.7,2595.9,2595.8,10.70464]
[1723849824011,0.76275782,2595.9,2595.8,6.85227]
[1723849825470,1.03936484,2595.9,2595.8,6.85227]
[1723849825669,0.76275782,2595.9,2595.8,10.70464]
[1723849828358,2.3902,2595.8,2595.7,0.1279038]
[1723849828697,14.38044788,2595.8,2595.7,0.1279038]
[1723849828997,12.7320362,2595.8,2595.7,0.1279038]
[1723849829367,10.32861045,2595.8,2595.7,0.1279038]
[1723849829882,6.47624045,2595.8,2595.7,0.1279038]
[1723849830082,4.80624045,2595.8,2595.7,0.1279038]
[1723849830686,6.47624045,2595.8,2595.7,0.1279038]
[1723849831130,4.80624045,2595.8,2595.7,0.1279038]
[1723849831315,4.05375492,2595.8,2595.7,3.9804238]
[1723849831617,3.65365792,2595.8,2595.7,0.1279038]
[1723849831823,3.69320632,2595.8,2595.7,0.1279038]
[1723849832188,1.30300632,2595.8,2595.7,3.9804238]
[1723849832478,0.10220149,2595.8,2595.7,7.8329438]
[1723849834470,0.10220149,2595.8,2595.7,11.6854638]
[1723849834808,0.10220149,2595.8,2595.7,14.6854638]
[1723849835334,0.7,2596.2,2596.1,3.85193]
[1723849835470,0.7,2596.2,2596.1,7.70386]
[1723849835666,0.80296737,2596.2,2596.1,7.70386]
[1723849835878,1.60315302,2596.2,2596.1,7.70386]
[1723849836286,0.80296737,2596.2,2596.1,7.70386]
[1723849838839,1.8835488,2596.2,2595.9,3.85213]
[1723849839013,0.7,2595.8,2595.7,6.9802938]
[1723849839383,1.35183269,2595.8,2595.7,6.9802938]
[1723849840910,1.35183269,2595.8,2595.7,3.1279038]
[1723849841122,0.80183269,2595.8,2595.7,10.8329438]
[1723849841287,0.80183269,2595.8,2595.7,3.9804238]
[1723849841488,2.15211727,2595.8,2595.7,3.9804238]
[1723849841811,4.87760948,2595.8,2595.7,0.1279038]
[1723849842593,4.0773249,2595.8,2595.7,0.1279038]
[1723849843642,4.87760948,2595.8,2595.7,0.1279038]
[1723849845919,1.6871249,2595.8,2595.7,3.9804238]
[1723849846116,0.80183269,2595.8,2595.7,7.8329438]
[1723849846328,0.80183269,2595.8,2595.7,0.1279038]
[1723849846329,3.05643269,2595.8,2595.7,0.1279038]
[1723849846538,5.20733452,2595.8,2595.7,0.1279038]
[1723849846831,11.31117269,2595.8,2595.7,0.1279038]
[1723849847190,12.72261722,2595.8,2595.7,0.1279038]
[1723849847595,15.12203969,2595.8,2595.7,0.1279038]
[1723849848428,16.57498722,2595.8,2595.7,0.1279038]
[1723849848798,15.12045877,2595.8,2595.7,0.1279038]
[1723849849008,12.72261722,2595.8,2595.7,0.1279038]
[1723849849229,8.87024722,2595.8,2595.7,0.1279038]
[1723849849824,6.52260983,2595.8,2595.7,0.1279038]
[1723849850033,7.7212847,2595.8,2595.7,0.1279038]
[1723849850232,7.1712847,2595.8,2595.7,0.1279038]
[1723849850546,3.10563337,2595.8,2595.7,3.9804238]
[1723849851044,2.3065653,2595.8,2595.7,7.8329438]
[1723849854041,2.3065653,2595.8,2595.7,3.9804238]
[1723849854825,2.3065653,2595.8,2595.7,3.9304238]
[1723849855480,4.08613361,2595.8,2595.7,0.0779038]
[1723849855760,4.23421004,2595.8,2595.7,0.0779038]
[1723849856514,2.45464173,2595.8,2595.7,3.9304238]
[1723849856831,2.45464173,2595.8,2595.7,7.7829438]
[1723849857449,2.45464173,2595.8,2595.7,3.9304238]
[1723849858218,4.70924173,2595.8,2595.7,0.0779038]
[1723849858419,6.30384339,2595.8,2595.7,0.0779038]
[1723849861540,2.45464173,2595.8,2595.7,3.9304238]
[1723849861741,2.45464173,2595.8,2595.7,7.7829438]
[1723849861931,1.75464173,2595.8,2595.7,7.7829438]
[1723849862131,1.75464173,2595.8,2595.7,10.7829438]
[1723849862441,1.75464173,2595.8,2595.7,13.0634438]
[1723849862645,1.75464173,2595.8,2595.7,16.9159638]
[1723849862939,1.65280904,2595.8,2595.7,16.9159638]
[1723849863358,1.75249221,2595.8,2595.7,16.9159638]
[1723849863544,1.65280904,2595.8,2595.7,16.9159638]
[1723849864066,1.65280904,2595.8,2595.7,13.0634438]
[1723849864246,1.65280904,2595.8,2595.7,16.9159638]
[1723849864442,1.65280904,2595.8,2595.7,13.0634438]
[1723849866831,1.65280904,2595.8,2595.7,16.9159638]
[1723849867452,1.65280904,2595.8,2595.7,20.7684838]
[1723849867656,1.99782665,2596.8,2596.2,2.365]
[1723849867657,3.80523749,2596.7,2596.2,2.365]
[1723849867827,3.80523749,2596.7,2596.6,3.85119]
[1723849867828,3.17418171,2596.7,2596.6,3.85119]
[1723849868252,3.17418171,2596.7,2596.6,7.70238]
[1723849868466,2.37504422,2596.7,2596.6,7.70238]
[1723849868678,2.47167601,2596.7,2596.6,7.70238]
[1723849870240,1.77167601,2596.7,2596.6,12.323808]
[1723849870515,1.77167601,2596.7,2596.6,14.688808]
[1723849870681,1.67504422,2596.7,2596.6,17.688808]
[1723849871524,1.67504422,2596.7,2596.6,13.837618]
[1723849872625,1.67504422,2596.7,2596.6,11.472618]
[1723849873134,1.67504422,2596.7,2596.6,10.70238]
[1723849880669,1.67504422,2596.7,2596.6,14.55357]
[1723849881142,1.67504422,2596.7,2596.6,16.91857]
[1723849884840,1.67504422,2596.7,2596.6,14.55357]
[1723849892717,2.65686909,2597.3,2597.1,3.85032]
[1723849892933,0.09681589,2597.2,2597.1,3.85032]
[1723849893133,2.65686909,2597.3,2597.2,3.8503]
[1723849893362,2.75379696,2597.3,2597.2,3.8503]
[1723849893535,5.53968666,2597.3,2597.2,3.8503]
[1723849893855,3.07682787,2597.3,2597.2,3.8503]
[1723849896279,0.79692787,2597.3,2597.2,7.7006]
[1723849896426,0.09692787,2597.3,2597.2,10.7006]
[1723849896865,1.98891376,2597.5,2597.4,7.7]
[1723849899150,4.26881376,2597.5,2597.2,6.8502]
[1723849899348,0.7,2597.0,2596.8,11.17086]
[1723849899680,2.2799,2596.9,2596.8,11.17086]
[1723849899883,2.2799,2596.9,2596.8,14.17086]
[1723849900387,2.37604342,2596.9,2596.8,14.17086]
[1723849900749,2.37604342,2596.9,2596.8,10.32]
[1723849900949,2.68364776,2596.9,2596.1,7.32]
[1723849901169,2.68364776,2596.9,2596.1,3.85184]
[1723849901170,0.7,2596.3,2596.1,3.85184]
[1723849901447,0.7,2596.3,2596.0,3.85199]
[1723849901792,0.09521739,2596.2,2596.0,3.85199]
[1723849902268,0.7,2596.3,2596.0,3.85199]
[1723849902614,0.7,2596.3,2596.1,3.0]
[1723849902751,0.09546675,2596.2,2596.1,6.8519]
[1723849902951,0.7,2596.3,2596.1,6.8519]
[1723849903288,0.09537938,2596.2,2596.1,6.8519]
[1723849903486,0.09537938,2596.2,2596.1,3.0]
[1723849903687,0.7,2596.3,2596.1,3.0]
[1723849903896,0.09537938,2596.2,2596.1,3.0]
[1723849904268,0.7,2596.3,2596.2,3.85178]
[1723849904475,0.7,2596.3,2596.2,7.70356]
[1723849904768,0.7,2596.6,2596.4,3.85148]
[1723849905490,0.7,2596.6,2596.4,7.70287]
[1723849905693,0.7,2596.6,2596.4,3.85139]
[1723849906989,0.7,2596.6,2596.5,3.85133]
[1723849907386,0.09592863,2596.6,2596.5,7.70266]
[1723849907617,0.09592863,2596.6,2596.5,10.70266]
[1723849907819,0.7,2596.9,2596.8,3.85089]
[1723849909296,0.7,2596.9,2596.8,7.70178]
[1723849909503,0.7921883,2596.9,2596.8,7.70178]
[1723849916766,0.7921883,2596.9,2596.7,3.85103]
[1723849917078,1.18876088,2596.9,2596.7,3.85103]
[1723849917622,2.3744,2596.8,2596.6,3.85118]
[1723849917847,2.3744,2596.8,2596.5,3.0]
[1723849917848,0.7,2596.6,2596.5,3.0]
[1723849918224,0.79206643,2596.6,2596.5,3.0]
[1723849918556,0.79206643,2596.6,2596.5,6.85133]
[1723849919126,0.79206643,2596.6,2596.3,3.85152]
[1723849920449,2.3744,2596.5,2596.3,3.85152]
[1723849920864,0.09187969,2596.4,2596.3,3.85152]
[1723849921069,0.09187969,2596.4,2596.3,7.70315]
[1723849921796,0.7,2596.6,2596.5,3.85133]
[1723849923814,0.7,2596.3,2596.2,3.85177]
[1723849923998,0.7,2596.3,2596.2,6.85177]
[1723849924291,0.79170565,2596.3,2596.2,6.85177]
[1723849924697,0.79170565,2596.3,2596.2,3.0]
[1723849925072,0.79170565,2596.3,2596.2,6.85178]
[1723849927986,0.79170565,2596.3,2596.2,10.70356]
[1723849931211,0.09170565,2596.3,2596.2,10.70356]
[1723849931412,0.09170565,2596.3,2596.2,16.83024]
[1723849931597,0.7,2596.6,2596.5,7.70266]
[1723849932279,0.78835339,2596.6,2596.5,7.70266]
[1723849932717,0.78835339,2596.6,2596.5,11.55399]
[1723849933015,0.7,2596.6,2596.5,14.55399]
[1723849933196,0.7,2596.6,2596.5,10.70266]
[1723849933590,0.7,2596.9,2596.8,3.85089]
[1723849933797,1.07829375,2596.9,2596.8,3.85089]
[1723849933997,0.7,2596.9,2596.8,3.85089]
[1723849934581,0.7,2596.9,2596.8,7.70178]
[1723849935325,0.78513699,2596.9,2596.8,7.70178]
[1723849935997,0.7,2596.6,2595.8,0.80911593]
[1723849936319,2.9838,2595.8,2595.5,3.85274]
[1723849936729,3.5338,2595.8,2595.4,3.85296]
[1723849937037,3.5338,2595.8,2595.3,3.85302]
[1723849937187,4.33293749,2595.8,2595.3,3.85302]
[1723849937601,3.5338,2595.8,2595.4,6.85291]
[1723849938929,3.61774623,2595.8,2595.4,6.85291]
[1723849939488,4.0594346,2595.8,2595.4,6.85291]
[1723849940113,4.0594346,2595.8,2595.6,3.85264]
[1723849940426,4.0594346,2595.8,2595.4,6.85292]
[1723849940603,4.0594346,2595.8,2595.5,3.85276]
[1723849941897,4.0594346,2595.8,2595.4,6.85292]
[1723849944427,4.0594346,2595.8,2595.4,10.70581]
[1723849944627,4.0594346,2595.8,2595.4,6.85289]
[1723849945147,4.0594346,2595.8,2595.2,3.85318]
[1723849945148,4.0594346,2595.8,2595.2,3.85317]
[1723849945348,7.9118046,2595.8,2595.3,3.0]
[1723849946124,7.9118046,2595.8,2595.3,6.8531]
[1723849946125,4.0594346,2595.8,2595.3,6.8531]
[1723849948027,4.0594346,2595.8,2595.3,6.85302]
[1723849948926,4.0594346,2595.8,2595.3,6.85301]
[1723849949164,4.0594346,2595.8,2595.6,3.8526]
[1723849949326,1.7756346,2595.8,2595.6,3.8526]
[1723849949528,1.7756346,2595.8,2595.5,3.85269]
[1723849951465,7.9934046,2595.8,2595.3,3.0]
[1723849951762,7.55171623,2595.8,2595.2,6.85314]
[1723849952861,7.55171623,2595.8,2595.3,3.85311]
[1723849953563,7.55171623,2595.8,2595.2,3.0]
[1723849953766,7.55171623,2595.8,2595.2,6.85318]
[1723849953958,7.55171623,2595.8,2595.3,3.85311]
[1723849954525,11.40408623,2595.8,2595.1,3.85329]
[1723849954767,16.05317825,2595.8,2594.8,7.32]
[1723849955062,16.45153926,2595.8,2594.8,7.32]
[1723849955284,18.65703759,2595.8,2594.8,7.32]
[1723849955431,18.65703759,2595.8,2594.8,11.17385]
[1723849955860,18.65703759,2595.8,2595.0,3.85353]
[1723849955861,13.60958456,2595.8,2595.0,3.85353]
[1723849956053,10.55341995,2595.8,2595.0,3.85353]
[1723849956233,9.75721456,2595.8,2595.2,3.85326]
[1723849956445,10.55382633,2595.8,2595.2,3.85326]
[1723849957837,10.55382633,2595.8,2595.2,3.85319]
[1723849958173,5.90484456,2595.8,2595.4,3.85296]
[1723849958375,3.69934623,2595.8,2595.4,3.85296]
[1723849958737,0.78394623,2595.8,2595.7,3.9304238]
[1723849965286,0.08394623,2595.8,2595.7,7.7829438]
[1723849965487,0.08394623,2595.8,2595.7,10.1979438]
[1723849965697,0.7,2596.1,2595.9,3.85208]
[1723849965877,0.7,2596.1,2596.0,3.85208]
[1723849966081,1.25,2596.1,2596.0,3.85208]
[1723849966279,1.33108216,2596.1,2596.0,3.85208]
[1723849966464,1.33108216,2596.1,2595.9,3.85222]
[1723849967784,1.33108216,2596.1,2595.7,3.9302838]
[1723849968175,1.33108216,2596.1,2595.8,3.85234]
[1723849968801,1.33108216,2596.1,2595.8,7.7046]
[1723849969000,1.33108216,2596.1,2595.8,3.85226]
[1723849969203,1.33108216,2596.1,2595.7,0.0779038]
[1723849969204,0.7,2595.8,2595.7,0.0779038]
[1723849969409,1.55611,2595.8,2595.7,0.0779038]
[1723849969677,1.63489736,2595.8,2595.7,0.0779038]
[1723849971813,1.32878736,2595.8,2595.7,0.0779038]
[1723849972109,3.70604107,2595.8,2595.7,0.0779038]
[1723849972900,7.55841107,2595.8,2595.7,0.0779038]
[1723849973694,3.70604107,2595.8,2595.7,0.0779038]
[1723849974224,6.06714107,2595.8,2595.7,0.0779038]
[1723849974425,7.21839953,2595.8,2595.7,0.0779038]
[1723849974637,11.07076953,2595.8,2595.7,0.0779038]
[1723849975142,11.8673813,2595.8,2595.7,0.0779038]
[1723849976504,12.26585256,2595.8,2595.7,0.0779038]
[1723849976933,11.07076953,2595.8,2595.7,0.0779038]
[1723849977106,12.26835439,2595.8,2595.7,0.0779038]
[1723849977924,8.41598439,2595.8,2595.7,0.0779038]
[1723849978756,8.41697325,2595.8,2595.7,0.0779038]
[1723849979269,8.41701023,2595.8,2595.7,0.0779038]
[1723849979556,8.81184357,2595.8,2595.7,0.0779038]
[1723849979708,8.41763112,2595.8,2595.7,0.0779038]
[1723849980153,12.27000112,2595.8,2595.7,0.0779038]
[1723849980325,12.66967644,2595.8,2595.7,0.0779038]
[1723849980519,13.06836055,2595.8,2595.7,0.0779038]
[1723849981509,11.07076953,2595.8,2595.7,0.0779038]
[1723849981725,13.07253123,2595.8,2595.7,0.0779038]
[1723849982365,13.07246832,2595.8,2595.7,0.0779038]
[1723849982740,9.22009832,2595.8,2595.7,0.0779038]
[1723849982945,7.21839953,2595.8,2595.7,0.0779038]
[1723849983374,9.22026989,2595.8,2595.7,0.0779038]
[1723849983868,7.21839953,2595.8,2595.7,0.0779038]
[1723849984168,9.22026989,2595.8,2595.7,0.0779038]
[1723849984626,7.21839953,2595.8,2595.7,0.0779038]
[1723849985025,4.85729953,2595.8,2595.7,0.0779038]
[1723849985261,5.30746454,2595.8,2595.7,0.0779038]
[1723849986843,4.75746454,2595.8,2595.7,3.9304238]
[1723849987051,4.35715524,2595.8,2595.7,3.9304238]
[1723849987949,3.9568368,2595.8,2595.7,3.9304238]
[1723849988765,3.9568368,2595.8,2595.7,0.0779038]
[1723849989080,7.95599268,2595.8,2595.7,0.0779038]
[1723849989457,7.95602404,2595.8,2595.7,0.0779038]
[1723849991494,8.35630198,2595.8,2595.7,0.0779038]
[1723849991957,8.75661032,2595.8,2595.7,0.0779038]
[1723849992157,12.60898032,2595.8,2595.7,0.0779038]
[1723849992358,12.20866956,2595.8,2595.7,0.0779038]
[1723849993196,10.60724851,2595.8,2595.7,0.0779038]
[1723849993397,12.20863259,2595.8,2595.7,0.0779038]
[1723849993899,12.60898032,2595.8,2595.7,0.0779038]
[1723849994300,12.6088483,2595.8,2595.7,0.0779038]
[1723849995665,10.60724851,2595.8,2595.7,0.0779038]
[1723849995890,14.27973527,2595.8,2595.7,0.0779038]
[1723849996056,8.35615003,2595.8,2595.7,0.0779038]
[1723849996262,5.98325003,2595.8,2595.7,0.0779038]
[1723849996467,4.38197851,2595.8,2595.7,0.0779038]
[1723849996663,5.98322038,2595.8,2595.7,0.0779038]
[1723849996984,10.2358877,2595.8,2595.7,0.0779038]
[1723849997166,9.83560951,2595.8,2595.7,0.0779038]
[1723849997366,9.8355613,2595.8,2595.7,0.0779038]
[1723849998902,22.38483554,2595.8,2595.7,0.0779038]
[1723849999117,19.98298851,2595.8,2595.7,0.0779038]
[1723849999290,23.18813558,2595.8,2595.7,0.0779038]
[1723849999483,20.38598071,2595.8,2595.7,0.0779038]
[1723849999999,18.71498071,2595.8,2595.7,0.0779038]
[1723850002626,17.26290971,2595.8,2595.7,0.0779038]
[1723850002930,20.71228751,2595.8,2595.7,0.0779038]
[1723850003090,14.86228051,2595.8,2595.7,0.0779038]
[1723850003287,18.71465051,2595.8,2595.7,0.0779038]
[1723850003931,17.26240169,2595.8,2595.7,0.0779038]
[1723850004093,16.85973969,2595.8,2595.7,0.0779038]
[1723850004905,14.45961851,2595.8,2595.7,0.0779038]
[1723850005144,10.05724851,2595.8,2595.7,0.0779038]
[1723850005494,12.05689452,2595.8,2595.7,0.0779038]
[1723850005952,10.05724851,2595.8,2595.7,0.0779038]
[1723850007045,10.60724851,2595.8,2595.7,0.0779038]
[1723850007763,14.45961851,2595.8,2595.7,0.0779038]
[1723850007904,20.87110278,2595.8,2595.7,0.0779038]
[1723850009897,20.87071363,2595.8,2595.7,0.0779038]
[1723850010837,18.47161851,2595.8,2595.7,0.0779038]
[1723850011496,14.45961851,2595.8,2595.7,0.0779038]
[1723850014216,16.85871363,2595.8,2595.7,0.0779038]
[1723850014415,16.8599022,2595.8,2595.7,0.0779038]
[1723850014724,14.45961851,2595.8,2595.7,0.0779038]
[1723850015121,16.8601565,2595.8,2595.7,0.0779038]
[1723850017557,20.8721565,2595.8,2595.7,0.0779038]
[1723850017715,18.47161851,2595.8,2595.7,0.0779038]
[1723850018334,22.32398851,2595.8,2595.7,0.0779038]
[1723850018552,18.47161851,2595.8,2595.7,0.0779038]
[1723850019459,20.87228402,2595.8,2595.7,0.0779038]
[1723850019656,24.72465402,2595.8,2595.7,0.0779038]
[1723850019869,22.32398851,2595.8,2595.7,0.0779038]
[1723850020023,18.47161851,2595.8,2595.7,0.0779038]
[1723850020324,25.12478789,2595.8,2595.7,0.0779038]
[1723850020525,22.72699859,2595.8,2595.7,0.0779038]
[1723850021948,16.53462859,2595.8,2595.7,0.0779038]
[1723850023161,20.38699859,2595.8,2595.7,0.0779038]
[1723850024031,16.53462859,2595.8,2595.7,0.0779038]
[1723850024458,20.38699859,2595.8,2595.7,0.0779038]
[1723850025072,16.53462859,2595.8,2595.7,0.0779038]
[1723850025567,22.78538877,2595.8,2595.7,0.0779038]
[1723850025969,18.93301877,2595.8,2595.7,0.0779038]
[1723850026345,18.53000869,2595.8,2595.7,0.0779038]
[1723850027466,16.13161851,2595.8,2595.7,0.0779038]
[1723850028181,18.53000869,2595.8,2595.7,0.0779038]
[1723850028344,16.13161851,2595.8,2595.7,0.0779038]
[1723850031075,5.15543801,2595.8,2595.7,2.5682038]
[1723850031375,3.15604107,2595.8,2595.7,2.5682038]
[1723850031575,4.35566221,2595.8,2595.7,2.5682038]
[1723850031778,3.15604107,2595.8,2595.7,2.5682038]
[1723850031978,4.35576128,2595.8,2595.7,7.06281018]
[1723850032179,3.95579975,2595.8,2595.7,7.06281018]
[1723850033066,3.15604107,2595.8,2595.7,10.91533018]
[1723850041578,3.15604107,2595.8,2595.7,7.06281018]
[1723850042007,3.15604107,2595.8,2595.7,2.5682038]
[1723850042411,8.35816975,2595.8,2595.7,0.0779038]
[1723850042706,7.55841107,2595.8,2595.7,0.0779038]
[1723850043353,8.75813128,2595.8,2595.7,0.0779038]
[1723850043663,9.37364996,2595.8,2595.7,0.0779038]
[1723850043994,10.57214662,2595.8,2595.7,0.0779038]
[1723850044369,10.97317761,2595.8,2595.7,0.0779038]
[1723850045300,9.37364996,2595.8,2595.7,0.0779038]
[1723850045517,10.97317761,2595.8,2595.7,0.0779038]
[1723850045658,10.57220334,2595.8,2595.7,0.0779038]
[1723850046053,4.90459445,2595.8,2595.7,0.0779038]
[1723850046897,9.15793872,2595.8,2595.7,0.0779038]
[1723850047901,17.69905107,2595.8,2595.7,0.0779038]
[1723850048096,17.69905107,2595.8,2594.1,11.32471]
[1723850048097,0.7,2594.7,2594.4,2.4488]
[1723850048516,0.55,2594.6,2594.4,2.4488]
[1723850048670,0.62397737,2594.6,2594.4,6.30324]
[1723850049435,11.97078787,2594.6,2594.1,0.1499]
[1723850049750,8.37668816,2594.6,2594.1,0.1499]
[1723850049957,5.94078816,2594.6,2594.1,0.1499]
[1723850050100,5.1420153,2594.6,2594.1,0.1499]
[1723850050307,5.94078816,2594.6,2594.1,4.00478]
[1723850050606,5.1420153,2594.6,2594.1,4.00478]
[1723850051303,5.1420153,2594.6,2594.1,0.1499]
[1723850051504,3.20996501,2594.6,2594.2,3.85461]
[1723850051705,3.20996501,2594.6,2594.3,3.8546]
[1723850053086,3.20996501,2594.6,2594.4,3.85444]
[1723850053519,3.20996501,2594.6,2594.2,7.70927]
[1723850054035,3.20996501,2594.6,2594.3,3.85459]
[1723850058079,3.10174414,2594.6,2594.3,3.85459]
[1723850059106,3.10174414,2594.6,2594.4,3.85445]
[1723850059339,3.10174414,2594.6,2594.5,4.8543]
[1723850059844,3.10174414,2594.6,2594.5,1.0]
[1723850061719,6.95589414,2594.6,2594.5,1.0]
[1723850061954,8.73586655,2594.6,2594.5,1.0]
[1723850062751,4.88171655,2594.6,2594.5,1.0]
[1723850063313,8.73586655,2594.6,2594.5,1.0]
[1723850064517,4.88171655,2594.6,2594.5,1.0]
[1723850064739,3.10174414,2594.6,2594.5,1.0]
[1723850066148,3.00234179,2594.6,2594.5,1.0]
[1723850068119,2.45234179,2594.6,2594.5,3.3364]
[1723850068324,2.45234179,2594.6,2594.5,11.045]
[1723850069961,2.45234179,2594.6,2594.5,4.8543]
[1723850072528,2.45234179,2594.6,2594.5,1.0]
[1723850072730,3.00234179,2594.6,2594.5,1.0]
[1723850074363,0.62397737,2594.6,2594.5,1.0]
[1723850074654,3.00484124,2594.6,2594.5,1.0]
[1723850080264,3.62171536,2594.6,2594.5,1.0]
[1723850084367,3.62064909,2594.6,2594.5,1.0]
[1723850085493,3.00377497,2594.6,2594.5,1.0]
[1723850086051,3.00377497,2594.6,2594.5,0.8]
[1723850088984,6.14844783,2594.6,2594.5,0.8]
[1723850089150,6.54783426,2594.6,2594.5,0.8]
[1723850089357,6.14891555,2594.6,2594.5,0.8]
[1723850089556,7.1323231,2594.6,2594.5,0.8]
[1723850089757,8.33048239,2594.6,2594.5,0.8]
[1723850089958,7.1323231,2594.6,2594.5,0.8]
[1723850090158,12.18463239,2594.6,2594.5,0.8]
[1723850090355,12.58401883,2594.6,2594.5,0.8]
[1723850092055,12.98594062,2594.6,2594.5,0.8]
[1723850092458,12.92457579,2594.6,2594.5,0.8]
[1723850092987,8.67128842,2594.6,2594.5,0.8]
[1723850093188,9.07042579,2594.6,2594.5,0.8]
[1723850093905,7.07095827,2594.6,2594.5,0.8]
[1723850094112,7.07095827,2594.6,2594.1,7.0047]
[1723850094113,6.90065,2594.2,2594.1,0.1499]
[1723850094259,12.4274,2594.2,2594.1,0.1499]
[1723850094480,16.35569482,2594.2,2594.1,0.1499]
[1723850094677,18.11619428,2594.2,2594.1,0.1499]
[1723850094998,17.89902318,2594.2,2594.1,0.1499]
[1723850095398,20.29985501,2594.2,2594.1,0.1499]
[1723850095738,22.88113666,2594.2,2594.1,0.1499]
[1723850095881,21.75377318,2594.2,2594.1,0.1499]
[1723850096381,24.55316056,2594.2,2594.1,0.1499]
[1723850096581,21.75377318,2594.2,2594.1,0.1499]
[1723850097213,24.1502414,2594.2,2594.1,0.1499]
[1723850097408,24.15026372,2594.2,2594.1,0.1499]
[1723850097613,21.75377318,2594.2,2594.1,0.1499]
[1723850097811,16.22702318,2594.2,2594.1,0.1499]
[1723850098014,17.89902318,2594.2,2594.1,0.1499]
[1723850098428,10.0557,2594.1,2594.0,0.0099]
[1723850098724,10.75688,2593.7,2593.6,0.005]
[1723850099021,14.97518803,2593.7,2593.6,0.005]
[1723850099186,13.30177638,2593.7,2593.6,0.005]
[1723850099386,17.07455402,2593.7,2593.6,0.005]
[1723850100003,13.40765764,2593.7,2593.6,0.005]
[1723850100204,15.40250911,2593.7,2593.6,0.005]
[1723850100424,17.52005865,2593.7,2593.6,0.005]
[1723850101310,15.52520718,2593.7,2593.6,0.005]
[1723850101692,11.66971718,2593.7,2593.6,0.005]
[1723850102004,0.7,2593.1,2593.0,3.85653]
[1723850102200,0.7,2593.1,2592.9,7.6960638]
[1723850102750,0.7,2593.1,2593.0,7.71306]
[1723850102891,2.06667612,2593.3,2593.2,7.71246]
[1723850103094,2.06667612,2593.3,2593.2,3.85623]
[1723850103327,0.7,2593.1,2593.0,6.85646]
[1723850103743,0.7,2593.1,2593.0,12.047763]
[1723850104236,2.06667612,2593.3,2593.2,3.85623]
[1723850104530,0.7,2593.5,2593.4,3.85594]
[1723850104706,0.7,2593.5,2593.3,3.85607]
[1723850105043,0.7,2593.5,2593.4,3.85594]
[1723850105328,0.7,2593.5,2593.2,6.8561]
[1723850105704,0.7,2592.9,2592.8,0.42496152]
[1723850105904,0.7,2592.9,2592.7,6.27417]
[1723850106107,0.7,2592.9,2592.8,3.85683]
[1723850106695,0.76964307,2592.9,2592.8,3.85683]
[1723850107108,0.76964307,2592.9,2592.8,6.85683]
[1723850109497,0.76964307,2592.9,2592.8,12.02676]
[1723850110631,2.68348188,2593.2,2593.1,7.71276]